fUSD/lending_fUSD_20250811
["ID","MTS","AMOUNT","RATE_DAILY","PERIOD"]
[378667302,1754951446304,-400.0,0.00016489,2]
[378667303,1754951446313,-400.0,0.00016489,2]
[378667304,1754951446322,-400.0,0.00016489,2]
[378667305,1754951446331,-400.0,0.00016489,2]
[378667306,1754951446340,-400.0,0.00016489,2]
[378667307,1754951446349,-400.0,0.00016489,2]
[378667308,1754951446358,-400.0,0.00016489,2]
[378667309,1754951446367,-400.0,0.00016489,2]
[378667310,1754951446376,-400.0,0.00016489,2]
[378667311,1754951446385,-400.0,0.00016489,2]
[378667312,1754951446394,-400.0,0.00016489,2]
[378667313,1754951446405,-400.0,0.00016489,2]
[378667314,1754951446414,-400.0,0.00016489,2]
[378667315,1754951446423,-400.0,0.00016489,2]
[378667316,1754951446432,-400.0,0.00016489,2]
[378667317,1754951446441,-400.0,0.00016489,2]
[378667318,1754951446450,-400.0,0.00016489,2]
[378667319,1754951446459,-400.0,0.00016489,2]
[378667320,1754951446475,-400.0,0.00016489,2]
[378667321,1754951446488,-400.0,0.00016489,2]
[378667322,1754951446497,-400.0,0.00016489,2]
[378667323,1754951446507,-400.0,0.00016489,2]
[378667324,1754951446516,-400.0,0.00016489,2]
[378667325,1754951446525,-400.0,0.00016489,2]
[378667326,1754951446534,-400.0,0.00016489,2]
[378667327,1754951446543,-400.0,0.00016489,2]
[378667328,1754951446552,-400.0,0.00016489,2]
[378667329,1754951446561,-150.0,0.00016489,2]
[378667330,1754951446571,-400.0,0.00016489,2]
[378667331,1754951446580,-547.74533286,0.00016489,2]
[378667332,1754951446591,-400.0,0.00016489,2]
[378667333,1754951446600,-400.0,0.00016489,2]
[378667334,1754951446609,-400.0,0.00016489,2]
[378667335,1754951446618,-283.88143202,0.00016489,2]
[378667336,1754951446627,-317.43846192,0.00016489,2]
[378667337,1754951446636,-400.0,0.00016489,2]
[378667338,1754951446645,-400.0,0.00016489,2]
[378667339,1754951446656,-400.0,0.00016489,2]
[378667340,1754951446666,-400.0,0.00016489,2]
[378667341,1754951446675,-408.0,0.00016489,2]
[378667342,1754951446685,-400.0,0.00016489,2]
[378667343,1754951446694,-400.0,0.00016489,2]
[378667344,1754951446703,-400.0,0.00016489,2]
[378667345,1754951446713,-400.0,0.00016489,2]
[378667346,1754951446722,-400.0,0.00016489,2]
[378667347,1754951446731,-400.0,0.00016489,2]
[378667348,1754951446740,-400.0,0.00016489,2]
[378667349,1754951446749,-400.0,0.00016489,2]
[378667350,1754951446758,-400.0,0.00016489,2]
[378667351,1754951446767,-400.0,0.00016489,2]
[378667352,1754951446776,-400.0,0.00016489,2]
[378667353,1754951446786,-400.0,0.00016489,2]
[378667354,1754951446795,-318.19136383,0.00016489,2]
[378667355,1754951446804,-400.0,0.00016489,2]
[378667357,1754951446813,-400.0,0.00016489,2]
[378667359,1754951446824,-400.0,0.00016489,2]
[378667361,1754951446833,-400.0,0.00016489,2]
[378667363,1754951446842,-400.0,0.00016489,2]
[378667365,1754951446851,-400.0,0.00016489,2]
[378667366,1754951446861,-400.0,0.00016489,2]
[378667368,1754951446871,-400.0,0.00016489,2]
[378667370,1754951446881,-400.0,0.00016489,2]
[378667372,1754951446890,-400.0,0.00016489,2]
[378667374,1754951446899,-400.0,0.00016489,2]
[378667377,1754951446909,-400.0,0.00016489,2]
[378667378,1754951446921,-400.0,0.00016489,2]
[378667380,1754951446930,-400.0,0.00016489,2]
[378667382,1754951446940,-400.0,0.00016489,2]
[378667384,1754951446954,-400.0,0.00016489,2]
[378667386,1754951446963,-400.0,0.00016489,2]
[378667388,1754951446972,-400.0,0.00016489,2]
[378667390,1754951446981,-194.65863617,0.00016489,2]
[378667392,1754951446992,-538.28213436,0.00016489,2]
[378667394,1754951447001,-400.0,0.00016489,2]
[378667395,1754951447010,-400.0,0.00016489,2]
[378667396,1754951447020,-400.0,0.00016489,2]
[378667398,1754951447030,-400.0,0.00016489,2]
[378667400,1754951447039,-400.0,0.00016489,2]
[378667402,1754951447048,-400.0,0.00016489,2]
[378667404,1754951447057,-400.0,0.00016489,2]
[378667406,1754951447067,-400.0,0.00016489,2]
[378667408,1754951447076,-400.0,0.00016489,2]
[378667410,1754951447085,-400.0,0.00016489,2]
[378667412,1754951447095,-400.0,0.00016489,2]
[378667414,1754951447104,-400.0,0.00016489,2]
[378667416,1754951447113,-400.0,0.00016489,2]
[378667418,1754951447122,-400.0,0.00016489,2]
[378667420,1754951447132,-400.0,0.00016489,2]
[378667422,1754951447141,-400.0,0.00016489,2]
[378667424,1754951447150,-400.0,0.00016489,2]
[378667426,1754951447159,-400.0,0.00016489,2]
[378667428,1754951447169,-400.0,0.00016489,2]
[378667430,1754951447179,-400.0,0.00016489,2]
[378667433,1754951447189,-400.0,0.00016489,2]
[378667434,1754951447199,-400.0,0.00016489,2]
[378667436,1754951447208,-400.0,0.00016489,2]
[378667438,1754951447217,-400.0,0.00016489,2]
[378667440,1754951447227,-400.0,0.00016489,2]
[378667443,1754951447237,-400.0,0.00016489,2]
[378667445,1754951447247,-400.0,0.00016489,2]
[378667447,1754951447256,-400.0,0.00016489,2]
[378667448,1754951447265,-400.0,0.00016489,2]
[378667449,1754951447275,-400.0,0.00016489,2]
[378667450,1754951447284,-400.0,0.00016489,2]
[378667451,1754951447293,-400.0,0.00016489,2]
[378667452,1754951447302,-400.0,0.00016489,2]
[378667453,1754951447311,-400.0,0.00016489,2]
[378667454,1754951447320,-400.0,0.00016489,2]
[378667455,1754951447329,-400.0,0.00016489,2]
[378667456,1754951447338,-400.0,0.00016489,2]
[378667457,1754951447347,-400.0,0.00016489,2]
[378667458,1754951447357,-400.0,0.00016489,2]
[378667459,1754951447366,-400.0,0.00016489,2]
[378667460,1754951447376,-400.0,0.00016489,2]
[378667461,1754951447385,-400.0,0.00016489,2]
[378667462,1754951447394,-400.0,0.00016489,2]
[378667463,1754951447403,-419.48,0.00016489,2]
[378667464,1754951447412,-400.0,0.00016489,2]
[378667465,1754951447421,-400.0,0.00016489,2]
[378667466,1754951447431,-400.0,0.00016489,2]
[378667467,1754951447440,-703.07,0.00016489,2]
[378667468,1754951447448,-300.0,0.00016489,2]
[378667469,1754951447457,-400.0,0.00016489,2]
[378667470,1754951447466,-400.0,0.00016489,2]
[378667471,1754951447475,-400.0,0.00016489,2]
[378667472,1754951447485,-1145.83,0.00016489,2]
[378667473,1754951447494,-400.0,0.00016489,2]
[378667474,1754951447503,-1713.02,0.00016489,2]
[378667475,1754951447512,-400.0,0.00016489,2]
[378667476,1754951447521,-1432.32,0.00016489,2]
[378667477,1754951447530,-400.0,0.00016489,2]
[378667478,1754951447539,-1393.1,0.00016489,2]
[378667479,1754951447548,-400.0,0.00016489,2]
[378667480,1754951447557,-400.0,0.00016489,2]
[378667481,1754951447566,-400.0,0.00016489,2]
[378667482,1754951447575,-400.0,0.00016489,2]
[378667483,1754951447584,-400.0,0.00016489,2]
[378667484,1754951447593,-400.0,0.00016489,2]
[378667485,1754951447602,-162.64857059,0.00016489,2]
[378667486,1754951447611,-776.07,0.00016489,2]
[378667487,1754951447620,-400.0,0.00016489,2]
[378667488,1754951447629,-400.0,0.00016489,2]
[378667489,1754951447638,-867.94,0.00016489,2]
[378667490,1754951447647,-1610.69,0.00016489,2]
[378667491,1754951447657,-400.0,0.00016489,2]
[378667492,1754951447666,-941.44,0.00016489,2]
[378667493,1754951447675,-400.0,0.00016489,2]
[378667494,1754951447684,-400.0,0.00016489,2]
[378667495,1754951447693,-736.02,0.00016489,2]
[378667496,1754951447702,-400.0,0.00016489,2]
[378667497,1754951447711,-400.0,0.00016489,2]
[378667498,1754951447721,-1275.57,0.00016489,2]
[378667499,1754951447729,-400.0,0.00016489,2]
[378667500,1754951447738,-6801.67,0.00016489,2]
[378667501,1754951447747,-400.0,0.00016489,2]
[378667502,1754951447757,-400.0,0.00016489,2]
[378667503,1754951447766,-150.0,0.00016496,2]
[378667504,1754951447775,-150.0,0.00016498,2]
[378667505,1754951447788,-4145.0,0.00016508,2]
[378667506,1754951447797,-810.0,0.00016508,2]
[378667507,1754951447807,-150.0,0.00016509,2]
[378667508,1754951447815,-150.0,0.00016517,2]
[378667509,1754951447824,-150.0,0.00016519,2]
[378667510,1754951447834,-150.0,0.0001652,2]
[378667511,1754951447843,-1780.085,0.00016521,2]
[378667512,1754951447852,-166.914,0.00016521,2]
[378667513,1754951447861,-150.0,0.00016528,2]
[378667514,1754951447870,-150.0,0.00016535,2]
[378667515,1754951447879,-150.0,0.00016538,2]
[378667516,1754951447888,-150.0,0.00016539,2]
[378667517,1754951447898,-150.0,0.00016543,2]
[378667518,1754951447907,-150.0,0.00016546,2]
[378667519,1754951447917,-533.67902791,0.00016569,2]
[378667520,1754951447927,-4258.81085927,0.00016569,2]
[378667521,1754951447936,-400.0,0.00016589,2]
[378667522,1754951447947,-400.0,0.00016589,2]
[378667523,1754951447956,-1858.09,0.00016589,2]
[378667524,1754951447966,-1086.66,0.00016589,2]
[378667525,1754951447975,-864.6,0.00016589,2]
[378667526,1754951447983,-400.0,0.00016589,2]
[378667527,1754951447994,-400.0,0.00016589,2]
[378667528,1754951448003,-7991.3,0.00016589,2]
[378667529,1754951448012,-151.0,0.0001659,2]
[378667530,1754951448021,-200.0,0.0001659,2]
[378667531,1754951448030,-48171.15,0.0001659,2]
[378667532,1754951448039,-292.00931033,0.0001659,2]
[378667533,1754951448048,-1000.0,0.00016599,2]
[378667534,1754951448058,-1000.0,0.00016599,2]
[378667535,1754951448067,-538.3,0.000166,2]
[378667536,1754951448076,-150.0,0.000166,2]
[378667537,1754951448086,-165.73,0.000166,2]
[378667538,1754951448095,-538.3,0.000166,2]
[378667539,1754951448104,-165.73,0.000166,2]
[378667540,1754951448113,-302.59,0.000166,2]
[378667541,1754951448123,-173.27,0.000166,2]
[378667542,1754951448132,-538.3,0.000166,2]
[378667543,1754951448140,-165.73,0.000166,2]
[378667544,1754951448150,-173.27,0.000166,2]
[378667545,1754951448158,-150.0,0.000166,2]
[378667546,1754951448168,-150.0,0.000166,2]
[378667547,1754951448177,-173.27,0.000166,2]
[378667548,1754951448186,-165.73,0.000166,2]
[378667549,1754951448195,-1057.56,0.000166,2]
[378667550,1754951448204,-173.27,0.000166,2]
[378667551,1754951448214,-150.0,0.000166,2]
[378667552,1754951448223,-165.73,0.000166,2]
[378667553,1754951448232,-162.77,0.000166,2]
[378667554,1754951448242,-150.0,0.000166,2]
[378667555,1754951448251,-797.4,0.000166,2]
[378667556,1754951448261,-467.96,0.000166,2]
[378667557,1754951448270,-150.0,0.000166,2]
[378667558,1754951448279,-150.0,0.000166,2]
[378667559,1754951448288,-325.48,0.000166,2]
[378667560,1754951448297,-158.58,0.000166,2]
[378667561,1754951448307,-150.0,0.000166,2]
[378667562,1754951448316,-150.0,0.000166,2]
[378667563,1754951448326,-360.26,0.000166,2]
[378667564,1754951448336,-240.0,0.000166,2]
[378667565,1754951448345,-150.0,0.000166,2]
[378667566,1754951448354,-165.73,0.000166,2]
[378667567,1754951448364,-150.0,0.000166,2]
[378667568,1754951448374,-150.0,0.000166,2]
[378667569,1754951448385,-150.0,0.000166,2]
[378667570,1754951448395,-150.0,0.000166,2]
[378667571,1754951448405,-538.3,0.000166,2]
[378667572,1754951448414,-861.67,0.000166,2]
[378667573,1754951448424,-797.4,0.000166,2]
[378667574,1754951448433,-150.0,0.000166,2]
[378667575,1754951448443,-538.3,0.000166,2]
[378667576,1754951448452,-165.73,0.000166,2]
[378667577,1754951448462,-173.27,0.000166,2]
[378667578,1754951448471,-150.0,0.000166,2]
[378667579,1754951448481,-150.0,0.000166,2]
[378667580,1754951448490,-150.0,0.000166,2]
[378667581,1754951448499,-150.0,0.000166,2]
[378667582,1754951448508,-150.0,0.000166,2]
[378667583,1754951448518,-365.64,0.000166,2]
[378667584,1754951448527,-797.4,0.000166,2]
[378667585,1754951448536,-380.0,0.000166,2]
[378667586,1754951448545,-467.96,0.000166,2]
[378667587,1754951448555,-359.87,0.000166,2]
[378667588,1754951448565,-538.3,0.000166,2]
[378667589,1754951448574,-173.27,0.000166,2]
[378667590,1754951448584,-165.73,0.000166,2]
[378667591,1754951448593,-150.0,0.000166,2]
[378667592,1754951448602,-150.0,0.000166,2]
[378667593,1754951448612,-150.0,0.000166,2]
[378667594,1754951448621,-797.4,0.000166,2]
[378667595,1754951448630,-359.87,0.000166,2]
[378667596,1754951448639,-150.0,0.000166,2]
[378667597,1754951448648,-467.96,0.000166,2]
[378667598,1754951448660,-776.0,0.000166,2]
[378667599,1754951448669,-173.27,0.000166,2]
[378667600,1754951448679,-165.73,0.000166,2]
[378667601,1754951448688,-359.87,0.000166,2]
[378667602,1754951448698,-4111.611,0.00016612,2]
[378667603,1754951448707,-168.0,0.00016614,2]
[378667604,1754951448716,-339.0,0.0001663,2]
[378667605,1754951448725,-177.94939297,0.00016643,2]
[378667606,1754951448735,-151.0,0.00016643,2]
[378667607,1754951448744,-151.0,0.00016643,2]
[378667608,1754951448754,-151.0,0.00016643,2]
[378667609,1754951448763,-151.0,0.00016643,2]
[378667610,1754951448773,-151.0,0.00016643,2]
[378667611,1754951448782,-151.0,0.00016643,2]
[378667612,1754951448791,-151.0,0.00016643,2]
[378667613,1754951448801,-151.0,0.00016643,2]
[378667614,1754951448810,-151.0,0.00016643,2]
[378667615,1754951448819,-247.6557842,0.00016643,2]
[378667616,1754951448829,-1181.7,0.00016648,2]
[378667617,1754951448838,-165.73,0.00016648,2]
[378667618,1754951448848,-359.87,0.00016648,2]
[378667619,1754951448857,-538.3,0.00016648,2]
[378667620,1754951448867,-165.73,0.00016648,2]
[378667621,1754951448876,-173.27,0.00016648,2]
[378667622,1754951448886,-150.0,0.00016648,2]
[378667623,1754951448895,-168.0,0.00016662,2]
[378667624,1754951448905,-294.02195792,0.00016663,2]
[378667625,1754951448915,-197.83,0.0001667,2]
[378667626,1754951448924,-718.0,0.00016685,2]
[378667627,1754951448934,-19617.0,0.00016685,2]
[378667628,1754951448945,-464.0,0.000167,2]
[378667629,1754951448956,-359.87,0.000167,2]
[378667630,1754951448965,-173.27,0.000167,2]
[378667631,1754951448974,-538.3,0.000167,2]
[378667632,1754951448983,-165.73,0.000167,2]
[378667633,1754951448994,-797.4,0.000167,2]
[378667634,1754951449003,-150.0,0.000167,2]
[378667635,1754951449014,-165.73,0.000167,2]
[378667636,1754951449025,-859.68,0.000167,2]
[378667637,1754951449034,-173.27,0.000167,2]
[378667638,1754951449043,-1394.57,0.000167,2]
[378667639,1754951449053,-359.87,0.000167,2]
[378667640,1754951449061,-150.0,0.000167,2]
[378667641,1754951449071,-150.0,0.000167,2]
[378667642,1754951449080,-797.4,0.000167,2]
[378667643,1754951449089,-173.27,0.000167,2]
[378667644,1754951449099,-359.87,0.000167,2]
[378667645,1754951449108,-165.73,0.000167,2]
[378667646,1754951449118,-538.3,0.000167,2]
[378667647,1754951449127,-150.0,0.000167,2]
[378667648,1754951449136,-359.87,0.000167,2]
[378667649,1754951449145,-173.27,0.000167,2]
[378667650,1754951449154,-538.3,0.000167,2]
[378667651,1754951449164,-150.0,0.000167,2]
[378667652,1754951449173,-190.91,0.000167,2]
[378667653,1754951449182,-173.27,0.000167,2]
[378667654,1754951449192,-165.73,0.000167,2]
[378667655,1754951449201,-1055.0,0.000167,2]
[378667656,1754951449210,-5809.1740927,0.00016701,2]
[378667657,1754951449219,-1964.8974963,0.00016701,2]
[378667658,1754951449228,-200.0,0.00016711,2]
[378667659,1754951449238,-150.0,0.00016711,2]
[378667660,1754951449247,-150.0,0.00016711,2]
[378667661,1754951449256,-150.0,0.00016711,2]
[378667662,1754951449266,-500.0,0.00016711,2]
[378667663,1754951449275,-150.0,0.00016711,2]
[378667664,1754951449286,-150.0,0.00016711,2]
[378667665,1754951449295,-200.0,0.00016711,2]
[378667666,1754951449304,-500.0,0.00016711,2]
[378667667,1754951449313,-150.0,0.00016711,2]
[378667668,1754951449322,-500.0,0.00016711,2]
[378667669,1754951449332,-150.0,0.00016711,2]
[378667670,1754951449340,-150.0,0.00016711,2]
[378667671,1754951449349,-178.64674276,0.00016711,2]
[378667672,1754951449358,-500.0,0.00016711,2]
[378667673,1754951449367,-150.0,0.00016711,2]
[378667674,1754951449376,-151.0,0.00016712,2]
[378667675,1754951449386,-257.01059,0.00016712,2]
[378667676,1754951449395,-175.16418025,0.00016712,2]
[378667677,1754951449406,-425.39,0.00016712,2]
[378667678,1754951449415,-832.98,0.00016712,2]
[378667679,1754951449424,-400.0,0.00016712,2]
[378667680,1754951449433,-819.26,0.00016712,2]
[378667681,1754951449442,-400.0,0.00016712,2]
[378667682,1754951449451,-400.0,0.00016712,2]
[378667683,1754951449460,-400.0,0.00016712,2]
[378667684,1754951449469,-705.7,0.00016712,2]
[378667685,1754951449479,-1103.74,0.00016712,2]
[378667686,1754951449488,-246.83307236,0.00016712,2]
[378667687,1754951449497,-400.0,0.00016712,2]
[378667688,1754951449506,-400.0,0.00016712,2]
[378667689,1754951449515,-157.82789756,0.00016712,2]
[378667690,1754951449525,-7224.57,0.00016712,2]
[378667691,1754951449534,-659.33,0.00016712,2]
[378667692,1754951449543,-870.25,0.00016712,2]
[378667693,1754951449552,-1783.49,0.00016712,2]
[378667694,1754951449561,-400.0,0.00016712,2]
[378667695,1754951449571,-400.0,0.00016712,2]
[378667696,1754951449580,-400.0,0.00016712,2]
[378667697,1754951449589,-400.0,0.00016712,2]
[378667698,1754951449598,-400.0,0.00016712,2]
[378667699,1754951449608,-400.0,0.00016712,2]
[378667700,1754951449617,-907.06,0.00016712,2]
[378667701,1754951449626,-400.0,0.00016712,2]
[378667702,1754951449635,-400.0,0.00016712,2]
[378667703,1754951449645,-400.0,0.00016712,2]
[378667704,1754951449655,-400.0,0.00016712,2]
[378667705,1754951449664,-485.15,0.00016712,2]
[378667706,1754951449674,-400.0,0.00016712,2]
[378667707,1754951449683,-400.0,0.00016712,2]
[378667708,1754951449692,-400.0,0.00016712,2]
[378667709,1754951449701,-400.0,0.00016712,2]
[378667710,1754951449711,-792.97,0.00016712,2]
[378667711,1754951449720,-400.0,0.00016712,2]
[378667712,1754951449729,-400.0,0.00016712,2]
[378667713,1754951449739,-400.0,0.00016712,2]
[378667714,1754951449748,-400.0,0.00016712,2]
[378667715,1754951449757,-400.0,0.00016712,2]
[378667716,1754951449766,-400.0,0.00016712,2]
[378667717,1754951449775,-400.0,0.00016712,2]
[378667718,1754951449784,-400.0,0.00016712,2]
[378667719,1754951449794,-400.0,0.00016712,2]
[378667720,1754951449803,-417.76,0.00016712,2]
[378667721,1754951449812,-400.0,0.00016712,2]
[378667722,1754951449821,-400.0,0.00016712,2]
[378667723,1754951449831,-400.0,0.00016712,2]
[378667724,1754951449841,-421.94,0.00016712,2]
[378667725,1754951449936,-400.0,0.00016712,2]
[378667726,1754951449987,-400.0,0.00016712,2]
[378667727,1754951449997,-587.84,0.00016712,2]
[378667728,1754951450007,-400.0,0.00016712,2]
[378667729,1754951450015,-400.0,0.00016712,2]
[378667730,1754951450027,-400.0,0.00016712,2]
[378667731,1754951450036,-540.83,0.00016712,2]
[378667732,1754951450045,-400.0,0.00016712,2]
[378667733,1754951450054,-400.0,0.00016712,2]
[378667734,1754951450063,-400.0,0.00016712,2]
[378667735,1754951450072,-400.0,0.00016712,2]
[378667736,1754951450081,-400.0,0.00016712,2]
[378667737,1754951450091,-1459.5,0.00016712,2]
[378667738,1754951450099,-400.0,0.00016712,2]
[378667739,1754951450109,-491.56,0.00016712,2]
[378667740,1754951450118,-400.0,0.00016712,2]
[378667741,1754951450127,-584.24,0.00016712,2]
[378667742,1754951450136,-400.0,0.00016712,2]
[378667743,1754951450145,-475.39,0.00016712,2]
[378667744,1754951450154,-400.0,0.00016712,2]
[378667745,1754951450163,-400.0,0.00016712,2]
[378667746,1754951450172,-982.43,0.00016712,2]
[378667747,1754951450181,-420.48,0.00016712,2]
[378667748,1754951450190,-400.0,0.00016712,2]
[378667749,1754951450200,-400.0,0.00016712,2]
[378667750,1754951450209,-553.33,0.00016712,2]
[378667751,1754951450218,-405.34,0.00016712,2]
[378667752,1754951450227,-412.67,0.00016712,2]
[378667753,1754951450236,-531.31,0.00016712,2]
[378667754,1754951450245,-400.0,0.00016712,2]
[378667755,1754951450254,-400.0,0.00016712,2]
[378667756,1754951450263,-400.0,0.00016712,2]
[378667757,1754951450273,-617.08,0.00016712,2]
[378667758,1754951450281,-400.0,0.00016712,2]
[378667759,1754951450290,-400.0,0.00016712,2]
[378667760,1754951450299,-1253.71,0.00016712,2]
[378667761,1754951450309,-400.0,0.00016712,2]
[378667762,1754951450319,-400.0,0.00016712,2]
[378667763,1754951450328,-690.49,0.00016712,2]
[378667764,1754951450337,-400.0,0.00016712,2]
[378667765,1754951450347,-400.0,0.00016712,2]
[378667766,1754951450356,-613.62,0.00016712,2]
[378667767,1754951450365,-400.0,0.00016712,2]
[378667768,1754951450374,-476.32,0.00016712,2]
[378667769,1754951450383,-412.4,0.00016712,2]
[378667770,1754951450392,-400.0,0.00016712,2]
[378667771,1754951450403,-400.0,0.00016712,2]
[378667772,1754951450412,-510.58,0.00016712,2]
[378667773,1754951450421,-547.87,0.00016712,2]
[378667774,1754951450431,-400.0,0.00016712,2]
[378667775,1754951450440,-400.0,0.00016712,2]
[378667776,1754951450449,-487.92,0.00016712,2]
[378667777,1754951450458,-400.0,0.00016712,2]
[378667778,1754951450467,-400.0,0.00016712,2]
[378667779,1754951450477,-400.0,0.00016712,2]
[378667780,1754951450486,-400.0,0.00016712,2]
[378667781,1754951450495,-400.0,0.00016712,2]
[378667782,1754951450504,-446.46,0.00016712,2]
[378667783,1754951450513,-418.75,0.00016712,2]
[378667784,1754951450522,-400.0,0.00016712,2]
[378667785,1754951450532,-486.35,0.00016712,2]
[378667786,1754951450540,-400.0,0.00016712,2]
[378667787,1754951450550,-400.0,0.00016712,2]
[378667788,1754951450559,-764.83,0.00016712,2]
[378667789,1754951450568,-647.07,0.00016712,2]
[378667790,1754951450578,-400.0,0.00016712,2]
[378667791,1754951450587,-400.0,0.00016712,2]
[378667792,1754951450596,-400.0,0.00016712,2]
[378667793,1754951450606,-438.43,0.00016712,2]
[378667794,1754951450615,-400.0,0.00016712,2]
[378667795,1754951450625,-1005.81,0.00016712,2]
[378667796,1754951450634,-413.69,0.00016712,2]
[378667797,1754951450643,-412.59,0.00016712,2]
[378667798,1754951450655,-400.0,0.00016712,2]
[378667799,1754951450665,-1522.93,0.00016712,2]
[378667800,1754951450674,-506.55,0.00016712,2]
[378667801,1754951450684,-463.98,0.00016712,2]
[378667802,1754951450693,-459.98,0.00016712,2]
[378667803,1754951450703,-694.79,0.00016712,2]
[378667804,1754951450713,-400.0,0.00016712,2]
[378667805,1754951450722,-400.0,0.00016712,2]
[378667806,1754951450732,-401.28,0.00016712,2]
[378667807,1754951450741,-400.0,0.00016712,2]
[378667808,1754951450750,-400.0,0.00016712,2]
[378667809,1754951450760,-576.19,0.00016712,2]
[378667810,1754951450771,-400.0,0.00016712,2]
[378667811,1754951450780,-400.0,0.00016712,2]
[378667812,1754951450790,-464.8,0.00016712,2]
[378667813,1754951450799,-400.0,0.00016712,2]
[378667814,1754951450809,-4595.69,0.00016712,2]
[378667815,1754951450818,-400.0,0.00016712,2]
[378667816,1754951450828,-400.0,0.00016712,2]
[378667817,1754951450838,-541.24,0.00016712,2]
[378667818,1754951450847,-400.0,0.00016712,2]
[378667819,1754951450857,-237.59217835,0.00016712,2]
[378667820,1754951450866,-913.93,0.00016712,2]
[378667821,1754951450876,-400.0,0.00016712,2]
[378667822,1754951450886,-400.0,0.00016712,2]
[378667823,1754951450895,-400.0,0.00016712,2]
[378667824,1754951450904,-524.02,0.00016712,2]
[378667825,1754951450913,-400.0,0.00016712,2]
[378667826,1754951450923,-588.49,0.00016712,2]
[378667827,1754951450932,-578.83,0.00016712,2]
[378667828,1754951450942,-400.0,0.00016712,2]
[378667829,1754951450956,-400.0,0.00016712,2]
[378667830,1754951450966,-1247.14,0.00016712,2]
[378667831,1754951450975,-458.07,0.00016712,2]
[378667832,1754951450984,-495.55,0.00016712,2]
[378667833,1754951450994,-400.0,0.00016712,2]
[378667834,1754951451010,-855.41,0.00016712,2]
[378667835,1754951451020,-610.42,0.00016712,2]
[378667836,1754951451030,-814.93,0.00016712,2]
[378667837,1754951451040,-541.21,0.00016712,2]
[378667838,1754951451049,-1370.25,0.00016712,2]
[378667839,1754951451059,-560.14,0.00016712,2]
[378667840,1754951451068,-515.15,0.00016712,2]
[378667841,1754951451078,-400.0,0.00016712,2]
[378667842,1754951451087,-400.0,0.00016712,2]
[378667843,1754951451096,-400.0,0.00016712,2]
[378667844,1754951451105,-559.22,0.00016712,2]
[378667845,1754951451115,-422.31642742,0.00016712,2]
[378667846,1754951451124,-559.19,0.00016712,2]